bitfinex/quotes_ETHUSD_20250219
["timestamp","ask_amount","ask_price","bid_price","bid_amount"]
[1739977952861,3.50630839,2691.8,2690.8,0.804]
[1739977953198,3.0,2691.7,2690.8,4.52026]
[1739977953392,6.71507,2691.8,2690.8,8.23653]
[1739977953561,6.71507,2691.8,2690.9,0.823653]
[1739977953762,6.71507,2691.8,2690.8,0.804]
[1739977953982,3.71542,2691.5,2690.8,0.804]
[1739977954145,7.4307,2691.6,2690.8,0.804]
[1739977954344,3.7157,2691.3,2691.1,0.75337977]
[1739977954583,3.71581,2691.2,2691.1,0.75337977]
[1739977954782,3.71581,2691.2,2691.0,0.315]
[1739977954983,3.71595,2691.1,2691.0,0.315]
[1739977955190,3.71636,2690.8,2690.7,0.315]
[1739977955491,3.71603,2691.1,2690.7,0.315]
[1739977955851,3.0,2691.0,2690.7,0.315]
[1739977956042,6.2087,2691.4,2690.7,0.315]
[1739977956043,9.09556,2691.4,2690.8,0.811]
[1739977956249,9.09562,2691.4,2690.8,0.811]
[1739977956563,3.71575,2691.3,2690.8,0.811]
[1739977956763,5.38,2691.4,2690.8,0.99733769]
[1739977957655,9.09565,2691.4,2690.8,0.99733769]
[1739977958200,5.38,2691.4,2690.8,0.99733769]
[1739977958410,5.38,2691.4,2690.9,3.71613]
[1739977958566,5.38,2692.0,2691.2,0.73447358]
[1739977958773,3.71525,2691.7,2691.3,0.7661]
[1739977958991,3.71525,2691.7,2691.4,0.314]
[1739977959298,3.71526,2691.6,2691.4,0.314]
[1739977959698,3.7154,2691.5,2691.4,0.314]
[1739977960002,3.71554,2691.4,2691.3,0.315]
[1739977960185,9.09554,2691.4,2691.3,0.315]
[1739977960583,12.09554,2691.4,2691.3,0.315]
[1739977961307,13.676635,2691.4,2691.3,0.315]
[1739977961469,3.71595,2691.1,2691.0,1.05361028]
[1739977961676,3.7164,2690.8,2690.6,0.8094]
[1739977961891,3.7164,2690.8,2690.7,0.314]
[1739977962069,3.7164,2690.8,2690.0,8.353]
[1739977962272,5.38,2690.9,2690.7,0.73904789]
[1739977962613,6.71636,2690.8,2690.7,1.05504789]
[1739977962911,3.71673,2690.6,2690.3,0.316]
[1739977963274,3.71687,2690.5,2690.3,0.316]
[1739977963702,3.71717,2690.3,2690.0,8.353]
[1739977963862,3.71719,2690.2,2690.1,0.316]
[1739977964092,3.71691,2690.4,2690.1,0.316]
[1739977964284,3.71691,2690.4,2690.1,1.05065589]
[1739977964486,3.71713,2690.3,2690.1,1.05065589]
[1739977964923,3.71719,2690.2,2690.1,1.05065589]
[1739977965436,3.71719,2690.2,2690.1,0.316]
[1739977965912,5.38,2690.3,2690.1,0.316]
[1739977966316,9.09705,2690.3,2690.1,0.316]
[1739977966630,5.38,2690.3,2690.1,0.316]
[1739977967230,3.71719,2690.2,2690.1,0.316]
[1739977967528,9.09712,2690.3,2690.1,0.316]
[1739977967732,9.09707,2690.3,2690.1,0.316]
[1739977968506,5.38,2690.3,2690.1,0.316]
[1739977968831,5.65250791,2690.7,2690.1,0.316]
[1739977969038,3.71666,2690.6,2690.1,0.316]
[1739977969205,7.43341,2690.6,2690.1,0.316]
[1739977969391,3.71673,2690.6,2690.0,0.7575092]
[1739977969591,5.38,2690.7,2690.2,0.314]
[1739977969795,5.38,2690.5,2690.2,0.314]
[1739977969999,3.71705,2690.3,2690.2,0.314]
[1739977970647,3.71694,2690.4,2690.2,0.314]
[1739977971306,5.38,2690.3,2690.2,0.314]
[1739977971517,5.38,2690.4,2690.2,0.314]
[1739977971891,5.38,2690.3,2690.2,0.314]
[1739977972316,5.38,2690.3,2690.0,0.7575092]
[1739977972317,3.71733,2690.1,2690.0,0.7575092]
[1739977972629,3.71774,2689.8,2689.7,0.313]
[1739977972842,16.34635047,2690.1,2689.5,0.313]
[1739977972843,3.71789,2689.7,2689.5,0.313]
[1739977973158,3.71802,2689.6,2689.5,0.313]
[1739977973638,5.38,2689.7,2689.5,0.313]
[1739977973945,5.38,2689.7,2689.4,0.7592]
[1739977974234,5.38,2689.7,2689.6,0.313]
[1739977974838,5.38,2689.7,2689.5,0.73525194]
[1739977975052,5.38,2689.7,2689.6,0.313]
[1739977976038,5.38,2689.7,2689.6,1.0825]
[1739977976393,5.38,2689.7,2689.6,0.7695]
[1739977976813,5.38,2689.7,2689.6,1.0815]
[1739977977055,9.09788,2689.7,2689.6,1.0815]
[1739977977250,5.38,2689.7,2689.6,0.312]
[1739977977553,3.71775,2689.8,2689.6,0.312]
[1739977978519,3.71788,2689.7,2689.5,0.73525194]
[1739977978725,3.71788,2689.7,2689.5,1.04725194]
[1739977978917,3.0,2689.8,2689.5,1.04725194]
[1739977979118,6.71777,2689.8,2689.5,1.04725194]
[1739977979664,5.38,2689.7,2689.5,1.04725194]
[1739977981413,5.38,2689.7,2689.5,0.73525194]
[1739977981604,5.38,2689.7,2689.6,0.311]
[1739977981806,12.09788,2689.7,2689.5,0.73525194]
[1739977982066,6.71802,2689.6,2689.5,1.04625194]
[1739977982359,10.96704047,2689.6,2689.5,1.04625194]
[1739977982555,3.0,2689.2,2688.6,8.357]
[1739977982930,3.0,2689.2,2688.7,0.314]
[1739977982931,3.71873,2689.1,2688.7,0.314]
[1739977983088,8.38,2689.2,2688.6,8.357]
[1739977983243,6.71871,2689.1,2689.0,0.76166919]
[1739977983659,6.71926,2688.7,2688.6,8.672]
[1739977983857,6.71926,2688.7,2688.6,8.357]
[1739977983858,8.38,2688.7,2688.6,8.357]
[1739977984061,12.09926,2688.7,2688.6,0.75913626]
[1739977984659,3.0,2688.6,2687.9,0.7613]
[1739977984838,3.0,2688.4,2688.0,0.315]
[1739977986956,3.0,2688.4,2688.3,0.7503101]
[1739977987481,6.71968,2688.4,2688.3,0.7503101]
[1739977988882,3.0,2688.0,2687.7,1.065]
[1739977989067,8.38,2688.0,2687.7,1.065]
[1739977990344,12.10027,2688.0,2687.7,0.75]
[1739977990575,12.10027,2688.0,2687.4,1.1297]
[1739977990576,3.0,2687.6,2687.4,1.1297]
[1739977990748,6.72091,2687.6,2687.4,0.314]
[1739977990955,3.0,2687.4,2687.3,8.357]
[1739977991270,9.10106,2687.4,2687.3,8.357]
[1739977991975,9.10106,2687.4,2687.3,9.11684636]
[1739977992485,6.72148,2687.1,2687.0,0.315]
[1739977992787,12.10148,2687.1,2686.7,0.314]
[1739977993447,8.38,2687.1,2686.7,0.314]
[1739977993690,3.0,2687.0,2686.7,1.0972]
[1739977993847,3.0,2687.0,2686.7,0.7832]
[1739977994043,6.72162,2687.0,2686.9,0.76114663]
[1739977994547,3.0,2687.0,2686.9,0.76114663]
[1739977994854,8.38,2687.1,2686.9,0.76114663]
[1739977995062,3.0,2687.0,2686.9,0.76114663]
[1739977995244,5.38,2687.1,2687.0,0.7685]
[1739977996175,5.38,2687.1,2686.9,0.76114663]
[1739977997880,9.10149,2687.1,2686.9,0.76114663]
[1739977998292,6.72162,2687.0,2686.9,0.76114663]
[1739977998490,3.0,2687.0,2686.9,0.76114663]
[1739977998906,12.10162,2687.0,2686.9,0.76114663]
[1739977999077,8.38,2687.0,2686.9,0.76114663]
[1739977999608,12.10162,2687.0,2686.9,0.76114663]
[1739977999966,8.38,2687.0,2686.9,0.76114663]
[1739978003243,5.38,2687.0,2686.9,0.76114663]
[1739978003745,3.72162,2687.0,2686.9,0.76114663]
[1739978003910,7.25962,2687.0,2686.9,0.76114663]
[1739978004106,3.72214,2686.7,2686.4,0.798]
[1739978004429,3.538,2687.0,2686.4,0.311]
[1739978004430,4.24902047,2686.8,2686.4,0.311]
[1739978004797,3.72204,2686.7,2686.4,0.311]
[1739978005033,3.72167,2687.0,2686.4,0.311]
[1739978005239,6.72176,2686.9,2686.4,0.311]
[1739978005476,6.72176,2686.9,2686.6,0.74496559]
[1739978005609,3.0,2686.9,2686.6,0.74496559]
[1739978006014,3.72191,2686.8,2686.6,0.74496559]
[1739978006249,6.72203,2686.7,2686.6,0.74496559]
[1739978007301,3.0,2686.7,2686.6,0.74496559]
[1739978007526,8.38,2686.7,2686.6,0.74496559]
[1739978007798,5.38,2686.7,2686.6,1.54826559]
[1739978008338,3.11389847,2686.7,2686.6,1.85826559]
[1739978010431,3.11389847,2686.7,2686.6,1.85926559]
[1739978011416,3.11389847,2687.0,2686.6,1.85926559]
[1739978012047,3.11389847,2687.6,2686.9,0.7589]
[1739978012263,1.61659552,2687.6,2687.1,0.7589]
[1739978012574,3.72011,2688.1,2687.2,0.311]
[1739978012781,5.38,2688.2,2687.3,0.7589]
[1739978012927,5.66304102,2688.2,2687.4,0.48284273]
[1739978013129,5.38,2688.4,2687.6,0.7589]
[1739978013377,5.38,2688.5,2687.9,0.76059236]
[1739978013871,4.24902047,2688.6,2687.9,0.76059236]
[1739978013872,4.24902047,2688.6,2688.1,0.7574]
[1739978014670,3.71921,2688.8,2688.1,0.7574]
[1739978014858,4.24902047,2688.9,2688.1,0.7574]
[1739978015239,4.24902047,2688.9,2688.2,0.03719272]
[1739978015427,4.24902047,2688.9,2688.4,0.75547919]
[1739978015870,5.38,2689.0,2688.4,0.75547919]
[1739978016179,3.0,2688.9,2688.4,0.75547919]
[1739978016323,3.0,2688.9,2688.4,0.55547919]
[1739978017440,3.0,2688.9,2688.4,0.59266889]
[1739978017671,4.24902047,2689.2,2688.5,1.1377]
[1739978018045,3.0,2689.1,2688.5,1.1377]
[1739978018238,3.0,2689.1,2688.5,0.8277]
[1739978018471,6.7188,2689.1,2688.6,0.31]
[1739978018668,3.0,2689.1,2688.6,0.31]
[1739978018968,3.0,2689.4,2688.6,0.34718944]
[1739978019180,0.781,2689.7,2688.7,0.79528622]
[1739978019181,4.24902047,2689.7,2688.7,0.79528622]
[1739978019465,3.71826,2689.5,2688.7,0.7581]
[1739978019764,3.0,2689.3,2688.7,0.7581]
[1739978020167,3.71866,2689.2,2688.8,0.31]
[1739978020574,3.71866,2689.2,2688.8,0.34718669]
[1739978021067,3.7189,2689.0,2688.8,0.31]
[1739978021242,3.71866,2689.2,2688.8,0.31]
[1739978021243,7.43732,2689.2,2688.8,0.31]
[1739978021431,3.71866,2689.2,2688.9,0.73751644]
[1739978021631,6.71878,2689.1,2688.9,0.73751644]
[1739978021868,3.0,2689.1,2688.9,0.73751644]
[1739978022368,3.71862,2689.2,2688.9,0.73751644]
[1739978023025,3.0,2689.4,2688.9,0.77470202]
[1739978023367,4.75138519,2689.8,2689.0,0.7926]
[1739978023368,4.24902047,2689.8,2689.0,0.7926]
[1739978023543,7.96684047,2689.8,2689.0,0.7926]
[1739978023739,3.0,2689.7,2689.0,0.7926]
[1739978024155,8.15586821,2689.8,2689.0,0.7926]
[1739978024368,6.71795,2689.7,2689.0,0.7926]
[1739978024547,3.0,2689.7,2689.0,0.7926]
[1739978024741,3.0,2689.9,2689.1,0.03718074]
[1739978024941,10.96669047,2689.9,2689.2,0.8119]
[1739978025337,7.24902047,2689.9,2689.3,0.03717782]
[1739978025537,7.24902047,2689.9,2689.2,0.8119]
[1739978025742,10.96670047,2689.9,2689.2,0.8119]
[1739978025938,7.24902047,2689.9,2689.2,0.8119]
[1739978026151,7.24902047,2689.9,2689.5,0.76004455]
[1739978026386,7.24902047,2689.9,2689.6,0.308]
[1739978026570,3.0,2689.7,2689.6,0.308]
[1739978027352,3.0,2689.8,2689.5,0.76004455]
[1739978027597,7.96704047,2689.6,2689.5,1.06804455]
[1739978027893,4.24902047,2689.6,2689.5,1.06804455]
[1739978029357,7.96704047,2689.6,2689.5,1.06804455]
[1739978029691,4.24902047,2689.6,2689.5,1.06804455]
[1739978029861,4.24902047,2689.6,2689.5,0.76004455]
[1739978030061,7.96704047,2689.6,2689.5,0.76004455]
[1739978030589,4.24902047,2689.6,2689.5,0.76004455]
[1739978031180,3.71764,2689.9,2689.5,0.76004455]
[1739978031181,4.24902047,2689.9,2689.5,0.94793901]
[1739978032402,3.71774,2689.8,2689.5,0.94793901]
[1739978032584,3.51136072,2689.7,2689.5,0.94793901]
[1739978033654,3.51136072,2689.7,2689.6,0.8049]
[1739978033978,3.51136072,2690.0,2689.6,1.0108839]
[1739978034562,3.51136072,2690.0,2689.7,0.305]
[1739978035401,3.71763,2689.9,2689.7,0.305]
[1739978035895,7.22883072,2690.0,2689.7,0.305]
[1739978036192,3.71761,2689.9,2689.7,0.305]
[1739978036393,7.22884072,2690.0,2689.7,0.305]
[1739978036695,3.71774,2689.8,2689.6,0.8049]
[1739978036900,3.51136072,2689.7,2689.6,0.8049]
[1739978037057,3.51136072,2689.7,2689.6,1.1099]
[1739978037266,7.22924072,2689.7,2689.6,1.1099]
[1739978037763,7.22924072,2689.7,2689.6,0.305]
[1739978037985,3.51136072,2689.7,2689.6,0.305]
[1739978038654,7.22924072,2689.7,2689.5,0.76004455]
[1739978038858,3.71802,2689.6,2689.5,0.76004455]
[1739978039196,3.71802,2689.6,2689.5,1.06404455]
[1739978039428,3.71802,2689.6,2689.5,0.76004455]
[1739978039599,3.7187,2689.2,2689.0,0.7886]
[1739978039917,3.51136072,2689.1,2689.0,0.7886]
[1739978040117,3.51136072,2689.1,2689.0,1.0926]
[1739978040319,3.51136072,2689.1,2689.0,2.39612106]
[1739978040977,3.51136072,2689.1,2689.0,1.05752106]
[1739978041822,7.23007072,2689.1,2689.0,1.05752106]
[1739978042026,7.23007072,2689.1,2689.0,0.75352106]
[1739978042527,3.51136072,2689.1,2689.0,0.75352106]
[1739978042824,3.51136072,2689.1,2689.0,1.58662106]
[1739978042982,3.51136072,2689.1,2689.0,1.77568317]
[1739978044919,3.51136072,2689.1,2689.0,1.58662106]
[1739978045131,7.23007072,2689.1,2689.0,0.75352106]
[1739978045480,3.0,2689.0,2688.3,0.8056]
[1739978045680,3.0,2689.0,2688.2,5.664]
[1739978045681,7.23104072,2688.4,2688.2,5.664]
[1739978046009,3.51136072,2688.4,2688.2,0.304]
[1739978046383,3.71982,2688.3,2688.2,0.304]
[1739978046825,4.27636072,2688.4,2687.7,6.1289]
[1739978047028,3.71982,2688.3,2688.2,0.74230797]
[1739978047781,6.71982,2688.3,2688.2,0.74230797]
[1739978049512,10.23118072,2688.3,2688.2,0.74230797]
[1739978049785,10.23118072,2688.3,2687.6,0.304]
[1739978050005,10.23118072,2688.3,2686.6,8.359]
[1739978050006,3.72093,2687.5,2687.4,0.304]
[1739978050220,3.51136072,2687.5,2687.4,0.304]
[1739978052027,3.51136072,2687.5,2687.4,1.03960306]
[1739978054129,7.23229072,2687.5,2687.4,1.03960306]
[1739978054625,3.51136072,2687.5,2687.4,0.73560306]
[1739978054832,7.23229072,2687.5,2687.4,0.73560306]
[1739978055041,3.51136072,2687.5,2687.4,0.73560306]
[1739978055790,3.51136072,2687.5,2687.4,1.50060306]
[1739978056191,3.51136072,2687.8,2687.5,0.55]
[1739978056442,3.51136072,2688.1,2687.7,1.3525]
[1739978056606,3.51136072,2688.3,2687.9,1.3525]
[1739978056938,3.51136072,2688.3,2688.2,0.8025]
[1739978058330,7.23118072,2688.3,2688.2,0.73793832]
[1739978058632,7.23118072,2688.3,2688.2,1.04293832]
[1739978059005,3.51136072,2688.3,2688.2,1.04293832]
[1739978059497,7.23118072,2688.3,2688.2,1.04293832]
[1739978059898,7.23118072,2688.3,2688.2,0.73793832]
[1739978060734,3.71996,2688.2,2688.1,0.305]
[1739978061094,3.71982,2688.3,2688.1,0.305]
[1739978061293,3.71996,2688.2,2688.1,0.305]
[1739978061526,3.71996,2688.2,2688.1,1.06038226]
[1739978061713,3.51136072,2688.4,2688.2,0.8214]
[1739978061925,3.51136072,2688.4,2688.3,0.18817823]
[1739978062142,3.51136072,2688.4,2688.3,0.49317823]
[1739978062349,7.23104072,2688.4,2688.3,0.49317823]
[1739978062547,3.51136072,2688.4,2688.3,0.49317823]
[1739978063051,7.23104072,2688.4,2688.3,0.49317823]
[1739978063993,7.23104072,2688.4,2688.3,0.305]
[1739978064224,7.23104072,2688.4,2688.1,0.75538226]
[1739978064439,7.23104072,2688.4,2688.3,0.305]
[1739978064732,3.71996,2688.2,2688.1,0.75538226]
[1739978065297,6.71996,2688.2,2688.1,0.75538226]
[1739978067449,3.0,2688.2,2687.8,0.305]
[1739978067647,7.98046535,2687.9,2687.8,0.305]
[1739978068001,3.72058,2687.8,2687.6,0.7836]
[1739978068206,3.72058,2687.8,2687.7,0.305]
[1739978068621,7.98046535,2687.9,2687.7,0.305]
[1739978068916,3.72051,2687.8,2687.7,0.305]
[1739978069321,3.72051,2687.8,2687.7,1.04857311]
[1739978070515,3.72051,2687.8,2687.7,0.74357311]
[1739978071560,7.98046535,2687.9,2687.7,0.74357311]
[1739978071860,3.72051,2687.8,2687.7,0.74357311]
[1739978072850,3.72051,2687.8,2687.7,1.04857311]
[1739978074651,3.72051,2687.8,2687.7,0.74357311]
[1739978076237,3.72095,2687.5,2687.4,0.305]
[1739978076454,3.72148,2687.1,2687.0,6.1803]
[1739978076616,3.72148,2687.1,2687.0,7.10333]
[1739978076855,3.72148,2687.1,2686.7,9.1488]
[1739978076856,3.72189,2686.8,2686.7,9.1488]
[1739978077186,7.98198535,2686.8,2686.7,8.362]
[1739978077545,7.98198535,2686.8,2686.7,9.11081657]
[1739978079556,7.98198535,2686.8,2686.7,0.74881657]
[1739978080612,4.26009535,2686.8,2686.7,0.74881657]
[1739978080788,7.98198535,2686.8,2686.7,0.74881657]
[1739978081294,4.26009535,2686.8,2686.7,0.74881657]
[1739978081478,7.98198535,2686.8,2686.7,0.74881657]
[1739978081978,7.85398535,2686.8,2686.7,1.05381657]
[1739978083449,4.13209535,2686.8,2686.7,1.05381657]
[1739978083653,7.85398535,2686.8,2686.7,1.05381657]
[1739978083854,4.13209535,2686.8,2686.7,1.05381657]
[1739978084055,4.13209535,2686.8,2686.7,0.74881657]
[1739978084255,0.7638,2687.7,2686.8,1.3098]
[1739978084468,9.64009535,2688.0,2687.0,0.55]
[1739978084469,3.49925903,2687.4,2687.0,0.55]
[1739978084907,4.26009535,2687.1,2687.0,0.55]
[1739978085206,4.26009535,2687.1,2686.9,0.26086166]
[1739978085207,3.72162,2687.0,2686.9,0.26086166]
[1739978085409,3.72162,2687.0,2686.9,0.56586166]
[1739978085710,3.72162,2687.0,2686.8,0.7598]
[1739978085923,4.26009535,2687.1,2686.8,0.03721584]
[1739978086125,7.98165535,2687.1,2686.7,1.05381657]
[1739978086415,3.7217,2687.0,2686.7,1.05381657]
[1739978086783,3.51878603,2686.8,2686.7,1.60381657]
[1739978086966,3.51878603,2686.8,2686.7,1.89517823]
[1739978087910,3.51878603,2687.1,2686.8,1.3788]
[1739978088873,3.51878603,2687.1,2686.9,0.305]
[1739978089308,3.51878603,2687.5,2687.0,1.3763]
[1739978089507,3.51878603,2687.5,2687.0,6.7363]
[1739978089713,3.51878603,2687.5,2687.2,0.8233]
[1739978089918,3.51878603,2687.5,2687.3,0.55]
[1739978090969,7.23978603,2687.5,2687.2,0.8233]
[1739978091173,7.23978603,2687.5,2687.3,0.305]
[1739978091369,7.23984603,2687.4,2687.1,0.70413]
[1739978091609,3.7212,2687.3,2687.2,0.606413]
[1739978091788,3.51878603,2687.4,2687.2,0.606413]
[1739978091789,7.23992603,2687.4,2687.2,0.606413]
[1739978092391,3.51878603,2687.4,2687.2,0.606413]
[1739978092592,3.32025342,2687.4,2687.2,0.64362153]
[1739978092787,3.32025342,2687.4,2687.2,1.38719051]
[1739978093126,3.32025342,2687.4,2687.3,0.855]
[1739978093278,3.32025342,2687.4,2687.3,1.0754982]
[1739978094002,3.32025342,2687.4,2687.3,0.7704982]
[1739978094209,3.32025342,2687.4,2687.3,1.0754982]
[1739978095383,0.78325342,2687.4,2687.3,1.0754982]
[1739978096196,4.50431342,2687.4,2687.3,1.0754982]
[1739978096391,4.50431342,2687.4,2687.3,0.305]
[1739978097032,4.50431342,2687.4,2687.2,0.74356898]
[1739978097033,3.7212,2687.3,2687.2,0.74356898]
[1739978097586,0.78325342,2687.4,2687.2,0.74356898]
[1739978098139,0.78325342,2687.4,2687.3,0.55]
[1739978098485,0.78325342,2687.4,2687.3,1.3727]
[1739978098685,0.78325342,2687.4,2687.3,1.6148269]
[1739978099461,0.78325342,2687.4,2687.3,1.0648269]
[1739978099947,0.78325342,2687.4,2687.3,1.40603441]
[1739978100122,7.23957603,2687.6,2687.4,0.55]
[1739978100318,7.23957603,2687.6,2687.5,0.78288269]
[1739978100508,3.72106,2687.4,2687.3,6.4248269]
[1739978100703,3.72106,2687.4,2687.3,5.36]
[1739978100908,3.72134,2687.2,2687.1,0.304]
[1739978101216,3.72176,2686.9,2686.8,5.664]
[1739978101432,7.24054603,2686.9,2686.8,5.664]
[1739978101597,7.24054603,2686.9,2686.8,6.40492021]
[1739978102018,3.51878603,2686.9,2686.8,6.74141223]
[1739978102478,3.51878603,2686.9,2686.8,8.12041223]
[1739978102971,3.51878603,2687.2,2686.9,0.55]
[1739978103570,3.51878603,2687.2,2686.8,7.57041223]
[1739978103764,7.24054603,2686.9,2686.8,6.10092021]
[1739978104669,7.24054603,2686.9,2686.8,6.40492021]
[1739978104965,7.24054603,2686.9,2686.8,6.10092021]
[1739978105526,7.24054603,2686.9,2686.8,0.74092021]
[1739978107884,3.72189,2686.8,2686.7,0.304]
[1739978108230,1.4684056,2686.8,2686.6,0.7513186]
[1739978108368,3.72259,2686.3,2686.2,8.364]
[1739978108557,7.24137603,2686.3,2686.2,8.364]
[1739978108739,11.00767603,2686.3,2686.2,8.364]
[1739978108937,7.28508603,2686.3,2686.0,0.304]
[1739978109160,3.72286,2686.1,2686.0,0.304]
[1739978109787,3.72342,2685.7,2685.6,5.36]
[1739978110100,7.24220603,2685.7,2685.6,0.84]
[1739978110260,3.51878603,2685.7,2685.6,1.03965874]
[1739978110675,7.24220603,2685.7,2685.6,1.03965874]
[1739978110979,7.24220603,2685.7,2685.6,0.73565874]
[1739978111284,3.72342,2685.7,2685.6,0.73565874]
[1739978111469,3.51878603,2685.8,2685.6,0.73565874]
[1739978111973,3.51878603,2685.8,2685.7,0.55]
[1739978112174,7.24213603,2685.8,2685.7,0.20702587]
[1739978112539,3.72342,2685.7,2685.6,0.73565874]
[1739978113592,7.24213603,2685.8,2685.6,0.73565874]
[1739978113886,3.72309,2686.0,2685.6,0.73565874]
[1739978113887,0.7663,2686.3,2685.8,0.7607]
[1739978114052,0.7503,2686.7,2685.9,0.55]
[1739978114241,7.24116603,2686.5,2686.1,0.55]
[1739978114443,3.51878603,2686.5,2686.2,0.305]
[1739978114667,7.24117603,2686.5,2686.2,0.305]
[1739978115185,7.24111603,2686.5,2686.2,0.305]
[1739978115385,7.24111603,2686.5,2685.9,5.91]
[1739978115386,3.72274,2686.2,2685.9,5.91]
[1739978115598,4.34938603,2686.5,2685.9,5.665]
[1739978115599,7.24178603,2686.0,2685.9,5.665]
[1739978116252,3.72314,2685.9,2685.8,0.305]
[1739978116445,3.72314,2685.9,2685.8,1.04200105]
[1739978116646,3.72314,2685.9,2685.8,0.73700105]
[1739978116892,3.0,2685.8,2684.9,8.5146594]
[1739978117103,3.51878603,2685.0,2684.9,8.5146594]
[1739978117389,3.51878603,2685.0,2684.9,8.8196594]
[1739978117743,7.24317603,2685.0,2684.9,8.5146594]
[1739978117943,7.24317603,2685.0,2684.9,8.8196594]
[1739978118144,3.72416,2685.2,2684.9,9.77838534]
[1739978118390,3.51878603,2685.1,2684.9,10.52463172]
[1739978119199,3.51878603,2685.1,2685.0,0.55]
[1739978119603,3.51878603,2685.1,2684.9,10.52463172]
[1739978121732,3.51878603,2685.4,2685.0,0.55]
[1739978121939,7.24269603,2685.4,2685.2,0.55]
[1739978122139,3.72397,2685.3,2685.1,1.91796317]
[1739978122288,3.72411,2685.2,2685.1,1.91796317]
[1739978122489,3.72411,2685.2,2685.1,0.305]
[1739978122688,3.72411,2685.2,2685.0,5.665]
[1739978122923,3.51878603,2685.1,2685.0,5.665]
[1739978123117,10.24303603,2685.1,2685.0,5.665]
[1739978123433,6.51878603,2685.1,2685.0,5.665]
[1739978123632,10.24303603,2685.1,2685.0,5.665]
[1739978124426,6.51878603,2685.1,2685.0,5.665]
[1739978124632,10.24303603,2685.1,2685.0,5.36]
[1739978125028,7.24303603,2685.1,2685.0,5.36]
[1739978126245,3.72439,2685.0,2684.9,0.89590578]
[1739978126701,3.51878603,2685.1,2684.9,0.89590578]
[1739978126902,3.51878603,2685.4,2685.0,0.305]
[1739978127116,3.72363,2685.6,2685.1,0.20171058]
[1739978127440,3.51878603,2685.6,2685.1,5.56171058]
[1739978127850,3.51878603,2685.8,2685.2,0.8025]
[1739978128149,3.51878603,2686.0,2685.3,0.58723207]
[1739978128323,3.51878603,2686.0,2685.4,0.51137721]
[1739978128523,3.51878603,2686.0,2685.5,5.91]
[1739978128917,3.51878603,2686.0,2685.6,0.8298]
[1739978129117,7.24181603,2686.0,2685.6,0.8298]
[1739978129322,3.51878603,2686.0,2685.6,0.8298]
[1739978129558,3.51878603,2686.0,2685.7,0.67398]
[1739978129708,3.51878603,2686.0,2685.8,0.305]
[1739978130228,3.72314,2685.9,2685.8,0.305]
[1739978130529,7.24185603,2686.0,2685.7,0.67398]
[1739978130841,3.72316,2685.9,2685.8,0.305]
[1739978131046,4.26723878,2686.0,2685.8,0.305]
[1739978131210,4.26723878,2686.0,2685.8,1.06490551]
[1739978131410,4.26723878,2686.0,2685.8,1.32177406]
[1739978131711,3.72314,2685.9,2685.8,1.32177406]
[1739978132154,3.72314,2685.9,2685.8,0.75990551]
[1739978132467,0.05923543,2685.9,2685.8,1.06490551]
[1739978132668,0.05923543,2685.9,2685.8,0.75990551]
[1739978132868,7.48485,2686.4,2685.8,1.81510551]
[1739978132869,4.26723878,2686.3,2685.8,1.81510551]
[1739978133006,0.0547933,2685.9,2685.8,1.81510551]
[1739978133203,0.0547933,2685.9,2685.8,1.00881406]
[1739978133449,0.0547933,2685.9,2685.8,1.06490551]
[1739978133878,3.7779333,2685.9,2685.8,1.06490551]
[1739978134278,0.0547933,2685.9,2685.8,1.06490551]
[1739978134749,0.0547933,2685.9,2685.8,0.75990551]
[1739978137017,6.72243,2686.5,2685.8,0.75990551]
[1739978137018,4.26723878,2686.8,2685.9,0.7591]
[1739978137193,5.09073878,2687.0,2686.1,3.72286]
[1739978137367,3.72178,2686.9,2686.3,0.7591]
[1739978137567,4.26723878,2686.7,2686.4,0.304]
[1739978137800,3.72231,2686.6,2686.0,6.1218]
[1739978137973,4.26723878,2686.4,2686.1,0.304]
[1739978138177,4.26723878,2686.4,2686.1,0.94658]
[1739978138511,7.98934878,2686.7,2686.1,0.94658]
[1739978138914,0.04476336,2686.6,2686.3,0.75066763]
[1739978139202,0.04476336,2686.6,2686.4,0.7761]
[1739978139710,4.45466398,2687.0,2686.4,9.89563704]
[1739978139870,11.70981878,2687.3,2686.4,10.40842]
[1739978140070,3.0,2687.2,2686.4,6.6861]
[1739978140302,4.26723878,2687.3,2686.6,3.72217]
[1739978140468,4.26723878,2687.3,2686.7,0.7632]
[1739978140665,4.26723878,2687.4,2686.7,6.1232]
[1739978140870,4.26723878,2687.4,2686.8,0.984529]
[1739978141074,4.26723878,2687.4,2686.9,0.304]
[1739978141721,4.26723878,2687.4,2687.0,0.55]
[1739978142429,4.26723878,2687.4,2687.1,0.759]
[1739978142714,0.04426422,2687.3,2687.1,0.759]
[1739978143630,0.04426422,2687.3,2687.2,1.053054]
[1739978143848,4.45012737,2688.0,2687.2,4.81158096]
[1739978143983,8.17037737,2688.0,2687.3,4.27112]
[1739978144317,3.72052,2687.8,2687.6,0.759]
[1739978144478,3.72052,2687.8,2687.7,0.304]
[1739978144673,7.98748878,2688.0,2687.7,0.304]
[1739978144904,3.0,2687.9,2687.7,0.304]
[1739978145474,3.72051,2687.8,2687.7,0.304]
[1739978145901,6.72051,2687.8,2687.7,0.304]
[1739978146107,6.76645994,2687.8,2687.7,0.304]
[1739978147304,6.76645994,2687.8,2687.7,1.0575454]
[1739978148014,3.04594994,2687.8,2687.7,1.0575454]
[1739978148442,6.76645994,2687.8,2687.7,1.0575454]
[1739978149653,6.76645994,2687.8,2687.7,0.7535454]
[1739978149843,6.72079,2687.6,2687.5,0.304]
[1739978150042,10.98802878,2687.6,2687.5,0.304]
[1739978150256,11.0347107,2687.6,2687.5,0.304]